Cogmind - Beta 12 *** ADVENTURER MODE // 2023.05.08 @ 23:10:11 Player: Deep Beef Result: Destroyed by as-04525 with Assembled Blade Performance ------------- Evolutions (0) 0 Regions Visited (2) 400 Robots Destroyed (19) 95 Value Destroyed (439) 439 Prototype IDs (0) 0 Alien Tech Used (0) 0 Bonus (0) 0 TOTAL SCORE: 934 Bonus ------- None Cogmind --------- Core Integrity 0/250 Matter 188/300 Energy 69/100 System Corruption 0% Temperature Cool (14) Movement Walking (260) Ox2 Location -10/Mines Parts ------- > --- POWER (1) -------- (None) > --- PROPULSION (2) --- Aluminum Leg > --- UTILITY (2) ------ Large Storage Unit > --- WEAPON (2) ------- EM Pulse Gun EM Pulse Gun > --- INVENTORY (15) --- Light Ion Engine Heat Sink Large Storage Unit Hardened Light Armor Plating Hardened Light Armor Plating Hardened Light Armor Plating Hardened Light Armor Plating EM Pulse Gun Light Assault Rifle Grenade Launcher Peak State ------------ > --- POWER ------------ Light Ion Engine > --- PROPULSION ------- Compact Wheel > --- UTILITY ---------- Large Storage Unit Terrain Scanner > --- WEAPON ----------- EM Pulse Gun Plasma Cutter > --- INVENTORY -------- Light Ion Engine Aluminum Leg Heat Sink Large Storage Unit Hardened Light Armor Plating Hardened Light Armor Plating Hardened Light Armor Plating Hardened Light Armor Plating EM Pulse Gun EM Pulse Gun Light Assault Rifle Grenade Launcher [Rating: 8] Favorites ----------- Power Light Ion Engine Engine Light Ion Engine Propulsion Compact Wheel Leg Aluminum Leg Wheel Compact Wheel Utility Large Storage Unit Device Terrain Scanner Storage Large Storage Unit Weapon EM Pulse Gun Energy Gun EM Pulse Gun Ballistic Gun Light Assault Rifle Launcher Grenade Launcher Special Weapon Plasma Cutter Build | -11 -10 -10 ------- Run | Jun Mat Min Slots Evolved . | . . . Power . | . . . Propulsion . | . . . Utility . | . . . Weapon . | . . . Parts Attached 19 | 6 5 8 Power 2 | 1 1 . Engine 2 | 1 1 . Core . | . . . Reactor . | . . . Propulsion 3 | 2 . 1 Treads . | . . . Leg 1 | . . 1 Wheel 2 | 2 . . Hover . | . . . Flight . | . . . Utility 4 | 1 3 . Device 2 | . 2 . Storage 2 | 1 1 . Processor . | . . . Hackware . | . . . Protection . | . . . Artifact . | . . . Weapon 10 | 2 1 7 Energy Gun 6 | 1 1 4 Energy Cannon . | . . . Ballistic Gun 1 | 1 . . Ballistic Cannon . | . . . Launcher 2 | . . 2 Special Weapon 1 | . . 1 Impact Weapon . | . . . Slashing Weapon . | . . . Piercing Weapon . | . . . Special Melee Weapon . | . . . Unidentified Prototypes . | . . . Parts Lost 4 | . 1 3 Power . | . . . Propulsion 2 | . 1 1 Utility 1 | . . 1 Weapon 1 | . . 1 Highest Loss Streak 2 | . 1 2 To Critical Strikes . | . . . Average Slot Usage (%) 85 | . 89 78 Engine 13 | . 14 13 Wheel 17 | . 21 9 Device 11 | . 10 13 Storage 14 | . 14 14 Energy Gun 13 | . 14 12 Ballistic Gun 12 | . 14 9 Launcher 1 | . . 3 Naked Turns . | . . . Heaviest Build 31 | 11 31 29 Greatest Support 32 | 32 32 16 Greatest Overweight (x) 9 | . 1 9 Average Overweight (x) . | . . 1 Largest Inventory Capacity 15 | 8 15 15 Average Capacity 14 | 7 14 15 Most Carried 12 | 1 11 12 Average Carried 6 | . 3 11 Final Capacity 15 | 8 15 15 Final Carried 11 | . 11 10 Class Distribution -------------------- 100% | Mutant Dominant Class ---------------- Mutant | -10/Materials Mutant | -10/Mines Resources | -11 -10 -10 ----------- Run | Jun Mat Min Matter Collected 354 | 207 134 13 Remotely . | . . . Salvage Created 590 | . 577 13 Parts 39 | . 39 . Haulers Intercepted 1 | . 1 . Recyclers Shooed . | . . . Parts Field Recycled . | . . . Retrieved Matter . | . . . Parts Self-Destructed . | . . . Prevented . | . . . Kills | -11 -10 -10 ------- Run | Jun Mat Min Combat Hostiles Destroyed 16 | . 15 1 Guns 14 | . 13 1 AOE 2 | . 2 . Classes Destroyed 5 | . 4 1 Hauler 1 | . 1 . Watcher 3 | . 3 . Swarmer 6 | . 6 . Grunt 9 | . 9 . Assembled 1 | . . 1 Best Kill Streak 4 | . 4 1 Combat Bots Only 3 | . 3 1 Max Kills in Single Turn 2 | . 2 1 Gunslinging 1 | . 1 . Exploded 2 | . 2 . Melee . | . . . Uniques/NPCs Destroyed . | . . . Combat | -11 -10 -10 -------- Run | Jun Mat Min Damage Taken 589 | . 291 298 Core 257 | . 101 156 Absorbed by Shields . | . . . Core Remaining (%) 100 | 100 . . Volleys Fired 48 | . 36 12 Largest 2 | . 2 2 Hottest 80 | . 60 80 Shots Fired 88 | . 72 16 Gun 80 | . 72 8 Cannon . | . . . Launcher 6 | . . 6 Special 2 | . . 2 Kinetic 36 | . 36 . Thermal 2 | . . 2 Explosive 6 | . . 6 Electromagnetic 44 | . 36 8 Robot Hit Streak 21 | . 21 3 Robot Miss Streak 2 | . 2 1 Penetration Max . | . . . Secondary Targets 3 | . 3 . Max Gunslinging Chain 1 | . 1 . Shots Hit Robots 64 | . 59 5 Core Hits 38 | . 34 4 Critical Kills . | . . . Critical Parts Destroyed . | . . . Critical Strikes . | . . . Melee Attacks . | . . . Impact . | . . . Slashing . | . . . Piercing . | . . . Sneak Attacks . | . . . Combat Hostiles . | . . . Follow-up Attacks . | . . . Damage Inflicted 1013 | . 958 55 Guns 718 | . 664 54 Cannons . | . . . Explosions 290 | . 289 1 Melee . | . . . Ramming 5 | . 5 . Kinetic 224 | . 224 . Thermal 246 | . 246 . Explosive 1 | . . 1 Electromagnetic 537 | . 483 54 Impact . | . . . Slashing . | . . . Piercing . | . . . Highest Corruption . | . . . Average Corruption . | . . . Corruption Purged . | . . . Corruption Blocked . | . . . Overload Shots . | . . . Overflow Damage 42 | . 37 5 Projectiles . | . . . Explosions 42 | . 37 5 Melee . | . . . Knockbacks . | . . . Impact . | . . . Kinetic . | . . . Secondary . | . . . Self-Inflicted Damage 165 | . 73 92 Shots 9 | . 3 6 Rammed 1 | . 1 . Targets Rammed 1 | . 1 . Kicked . | . . . Crushed . | . . . Highest Temperature 76 | . 76 36 Average Temperature 23 | . 24 17 Received Heat Transfer 102 | . 102 . Siege Activations . | . . . Robots Corrupted . | . . . Combat Hostiles . | . . . Parts Fried 4 | . 4 . Impact Corruptions . | . . . Robots Melted . | . . . Combat Hostiles . | . . . Parts Melted 1 | . 1 . Heat Transferred 350 | . 350 . Parts Sabotaged . | . . . Parts Stolen . | . . . Parts Stripped . | . . . Power Chain Reactions 4 | . 4 . Missiles Intercepted . | . . . Alert | -11 -10 -10 ------- Run | Jun Mat Min Peak Influence 301 | . 301 13 Initial . | . . . Average 78 | . 125 2 Maximum Alert Level 1 | . 1 . Low Security (%) 81 | 100 69 100 Level 1 18 | . 30 . Level 2 . | . . . Level 3 . | . . . Level 4 . | . . . Level 5 . | . . . High Security . | . . . Max Security . | . . . Squads Dispatched 3 | . 3 . Investigation 3 | . 3 . Extermination . | . . . Reinforcement . | . . . Assault . | . . . Garrison . | . . . Intercept . | . . . Searches Triggered . | . . . Construction Impeded . | . . . Haulers Reinforced . | . . . Active Scanning Responses . | . . . Cargo Convoy Interrupts . | . . . Stealth | -11 -10 -10 --------- Run | Jun Mat Min Distress Signals 2 | . 1 1 Communications Jammed . | . . . Distress Signals . | . . . Times Spotted 20 | . 18 2 Peak Tracking Total 5 | . 5 3 Tactical Retreats 1 | . . 1 Traps | -11 -10 -10 ------- Run | Jun Mat Min Traps Triggered 3 | . 3 . Indirectly . | . . . Trap Hack Attempts . | . . . Triggered . | . . . Disarmed . | . . . Reprogrammed . | . . . Reused . | . . . Traps Extracted . | . . . Installed . | . . . Triggered . | . . . Machines | -11 -10 -10 ---------- Run | Jun Mat Min Machines Disabled 1 | . 1 . Max in Single Turn 1 | . 1 . Machines Repaired . | . . . Machines Sabotaged . | . . . Overloaded Fab Kills . | . . . Hacking | -11 -10 -10 --------- Run | Jun Mat Min Machines Accessed 9 | . 9 . Terminals 8 | . 8 . Fabricators . | . . . Repair Stations . | . . . Recycling Units 1 | . 1 . Scanalyzers . | . . . Garrison Access . | . . . Total Hacks 31 | . 31 . Successful 17 | . 17 . Failed 14 | . 14 . Catastrophic . | . . . Database Lockouts . | . . . Manual 17 | . 17 . Terminals 30 | . 30 . Fabricators . | . . . Repair Stations . | . . . Recycling Units 1 | . 1 . Scanalyzers . | . . . Garrison Access . | . . . Terminal Hacks 9 | . 9 . Robot Analysis 1 | . 1 . Emergency Access Points 1 | . 1 . Unreport Threat 1 | . 1 . Locate Traps 1 | . 1 . Hauler Manifests 1 | . 1 . Zone Layout 4 | . 4 . Fabricator Hacks . | . . . Repair Station Hacks . | . . . Recycling Unit Hacks 1 | . 1 . Retrieve Components 1 | . 1 . Scanalyzer . | . . . Garrison Access Hacks . | . . . Unauthorized Hacks 7 | . 7 . Terminals 7 | . 7 . Botnet 7 | . 7 . Fabricators . | . . . Repair Stations . | . . . Recycling Units . | . . . Scanalyzers . | . . . Garrison Access . | . . . Data Cores Recovered . | . . . Used . | . . . Hacking Detections 8 | . 8 . Full Trace Events . | . . . Feedback Events . | . . . Feedback Blocked . | . . . Robot Schematics Acquired . | . . . Robots Built . | . . . Authchips . | . . . Time . | . . . Total Robot Build Rating . | . . . Part Schematics Acquired . | . . . Parts Built . | . . . Authchips . | . . . Time . | . . . Total Part Build Rating . | . . . Parts Repaired . | . . . Time . | . . . Parts Recycled . | . . . Recycled Matter . | . . . Retrieved Matter . | . . . Retrieved Components 9 | . 9 . Parts Scanalyzed . | . . . Part Schematics Acquired . | . . . Parts Damaged . | . . . Bothacking | -11 -10 -10 ------------ Run | Jun Mat Min Used RIF Installer . | . . . Robots Hacked . | . . . Non-combat . | . . . Combat . | . . . Robot Hacks Applied . | . . . Relay Couplers Released . | . . . Fabnet Peak Effective % . | . . . Robots Rewired . | . . . Allies Hacked . | . . . Hacks Repelled . | . . . Allies | -11 -10 -10 -------- Run | Jun Mat Min Total Allies . | . . . Largest Group . | . . . Highest-Rated Group . | . . . Highest-Rated Ally . | . . . Total Orders . | . . . Ally Attacks . | . . . Total Damage . | . . . Kills . | . . . Allies Corrupted . | . . . Allies Melted . | . . . Intel | -11 -10 -10 ------- Run | Jun Mat Min Robot Analysis Total 1 | . 1 . Derelict Logs Recovered 2 | . . 2 Drone Launches . | . . . Drone Recoveries . | . . . Exploration | -11 -10 -10 ------------- Run | Jun Mat Min Turns Passed 1560 | 36 970 554 Spaces Moved 1139 | 31 754 354 Core 34 | 8 . 26 Treads . | . . . Legs 10 | . . 10 Wheels 1095 | 23 754 318 Hover . | . . . Flight . | . . . Fastest Speed 50 | 50 100 115 Average Speed 117 | 87 106 143 Slowest Speed 500 | 100 115 500 Overloaded Moves . | . . . Propulsion Burnouts . | . . . Robots Hopped . | . . . Cave-ins Triggered . | . . . Exploration Rate (%) 55 | 2 97 66 Regions Visited 2 Branch Regions 1 Pre-discovered Areas 1 | . . 1 Known Exits Taken . | . . . Unknown Exits Taken 2 | 1 1 . Scrap Searched 1 | . . 1 Spaces Dug . | . . . Terrain Destroyed 48 | . 12 36 Melee . | . . . Projectile . | . . . AOE 48 | . 12 36 Terrain Rammed . | . . . Walls Destroyed . | . . . Machines Disabled . | . . . Actions | -11 -10 -10 --------- Run | Jun Mat Min Total 1268 | 37 852 379 Wait 49 | . 46 3 Move 1137 | 30 753 354 Hop . | . . . Pick Up 13 | 1 10 2 Fast Attach 7 | 5 1 1 Attach 5 | 1 1 3 Detach . | . . . Swap 7 | . 3 4 Drop 1 | . 1 . Fire 48 | . 36 12 Melee . | . . . Ram 1 | . 1 . Kick . | . . . Crush . | . . . Escape Stasis . | . . . Rewire . | . . . Trap . | . . . Miscellaneous . | . . . Route ------- -11/Junkyard -10/Materials (discovered 5 exits: [*Mat x3] / [*Min x2]) -10/Mines (discovered 1 exit: [*Mat]) History --------- Turn | Location | Event 9 | -11/Junkyard | Discovered new exit (range 16) 37 | -11/Junkyard | Entered Materials 300 | -10/Materials | Build established: Mutant 309 | -10/Materials | Discovered new exit (range 11) 404 | -10/Materials | Discovered new exit (range 15) 462 | -10/Materials | Discovered new exit (range 8) 568 | -10/Materials | Discovered new exit (range 14) 711 | -10/Materials | Discovered new exit (range 13) 1007 | -10/Materials | Entered Mines 1131 | -10/Mines | Learned 2 Materials zone layouts 1139 | -10/Mines | Discovered new exit (range 9) 1142 | -10/Mines | Learned location of Storage (-9) 1209 | -10/Mines | YI-UF0 nonchalantly dropped a Grenade Launcher on the ground 1376 | -10/Mines | Excavation squad dispatched 1376 | -10/Mines | A large section of the Mines collapsed 1499 | -10/Mines | Core integrity fell below 50% 1509 | -10/Mines | Core integrity fell below 20% 1561 | -10/Mines | Destroyed by as-04525 with Assembled Blade Last Messages --------------- K-01 Serf collects debris. R-06 Scavenger crushed by falling debris. R-06 Scavenger system corrupted by crushing effect. ALERT: Suspicious cave-in, suspected derelict activity in mines. Dispatching escorted excavation squad. R-06 Scavenger system terminally corrupted. Plasma Cutter destroyed. Destroyed Plasma Cutter. Com. Wheel destroyed. Destroyed Com. Wheel. The unstable cave ceiling collapses. Grenade Launcher severed. as-34985 destroyed. Acquired 13 matter. Acquired Grenade Launcher. The unstable cave ceiling collapses. EM Pulse Gun severed. Acquired EM Pulse Gun. Terrain Scanner destroyed. Lgt. Ion Engine severed. Map ----- +----------------------------------------------------+ | ##??????????????????????????????????????? | | ##?????????????????????????????????????? | | # #?????????????????????????????????????? | | ## ## ##???????????????????????????????????? | | ## #?# #?????????????????????????????????? | | ## #??### #????????????????????????????????? | | ## #?????? #????????????????????????????????? | | #??????? ##????????????????????????????????? | | #?????????##?????????????????????????????????? | | ## #????????????????????????????????????????????? | | ?# #?#??????????????????????????????????????????? | | ?# #????????????????????????????????????????????? | | ## #????????????????????????????????????????????? | | ?# #####????????????????????????????????????????? | | ## ##????#????#??? ?????????????????????????? | | ###### #????????###?????????????????????????????? | | #???# #????????????#????? ???#?????????????????? | | #???# ????????????????????????????????????????? | | #???# ???????#????????#??????????????????????? | | ##???#### ??#?#??#?#????????#??#????????????????? | | #???????? ???#???????????? ???##????????????????? | | ????????? #??#??????????????? ##???????????????? | | ?#??????? #? ???#???????##### #????????????????? | | ???????## ##????????##### ###?????????????????? | | #####?# ##??????## #??????????????????? | | ## #????#### @a #?###???????????????? | | #?#??# # ###???????????????????? | | #??##?# # #?#???????????????????? | | #???##?## ##??????#?????????????? | | #??#???# ####???????????????????? | | ##??#?## #####????????????????????? | | #???#?########????????? ??????????????? | | ####?????#%#??????????????????????????? | | #?#?????# #####??????????????????????? | | ## ####????# ###????##??????????????? | | ## ##?????##### #??#??#????????????????? | | #?????????# #?#????????????????????? | | ######??#?# #????##????????????????? | | #??### #??????????????????????? | | ##### #?## #??????????????????????? | | ##### ### #??????????????????????? | | % #?#???#????????????????? | | % ##?????????????????????? | | #### # #???????????#?????????? | | #??# ## #?????######???????#??? | | ###?# ### ##???### ##?????????? | | ####???# #?####???### #?????????? | | ##??????# #???????## #?????????? | | #???????# #????#### #??????????? | | ##???????# #???## #??????????? | +----------------------------------------------------+ Best States ------------- Heat Dissipation 35 Energy Generation 10 Energy Capacity 125 Matter Stores 300 Matter Capacity 300 Sight Range 16 Terrain Scan Range 14 Terrain Scan Density 10 Resistance: KI 20 Resistance: TH 20 Resistance: EX 20 Resistance: EM 20 Resistance: I 20 Resistance: S 20 Resistance: P 20 Evasion (%) 40 Offensive Hacking 10 Item Schematics ----------------- None Robot Schematics ------------------ None Fabricated ------------ Nothing Alien Tech Used ----------------- None Achievements -------------- None Challenges ------------ None Game ------ Seed SapperQuantumLog Manual? 0 Play Time 00:17:22 Cumulative 124.2 hours Start 2023.05.08 @ 20:40:09 End 2023.05.08 @ 23:10:11 Sessions 1 Manual Loads 0 Difficulty Adventurer Special Mode None Game No. 117 Rogue 72 Adventurer 45 Explorer 0 Win Type - Total 0 Types 0/0/0/0/0/0/0/0/0 Lore% 41 Gallery% 54 Achievement% 40 Wizard Run 0 Options --------- ASCII 0 Keyboard 0 Movement Mouse Keybinds 0 Fullscreen 1 Font 12/Smallcaps Map View 83x54 Tactical HUD 0 Map Filters NONE Filters NONE Steam 1 RUN: fd3fbb71-7606-47a7-8bad-e5a244f81f80